[Event "Early-Titled-Tuesday-Blitz-October-10-2023"]
[Site "Chess.com"]
[Date "2023.10.10"]
[Round "10"]
[White "dropstoneDP"]
[Black "adotand"]
[Result "1-0"]
[WhiteElo "3083"]
[BlackElo "2892"]
[TimeControl "180+1"]
[EndTime "9:55:25 PDT"]
[Termination "dropstoneDP won by resignation"]

1. Nf3 {[%clk 0:03:00.9]} 1... Nf6 {[%clk 0:03:00.1]} 2. c4 {[%clk 0:03:00.8]}
2... e6 {[%clk 0:02:58.7]} 3. g3 {[%clk 0:03:00.3]} 3... d5 {[%clk 0:02:58.9]}
4. d4 {[%clk 0:03:00.7]} 4... Bb4+ {[%clk 0:02:54.5]} 5. Bd2 {[%clk 0:03:00.3]}
5... Be7 {[%clk 0:02:55.2]} 6. Bg2 {[%clk 0:02:57.5]} 6... O-O {[%clk
0:02:55.1]} 7. O-O {[%clk 0:02:57.9]} 7... Nbd7 {[%clk 0:02:55.4]} 8. Qc2 {[%clk
0:02:58.3]} 8... c6 {[%clk 0:02:54.4]} 9. Bf4 {[%clk 0:02:58.9]} 9... h6 {[%clk
0:02:54.6]} 10. Rc1 {[%clk 0:02:57.3]} 10... a5 {[%clk 0:02:54]} 11. Nc3 {[%clk
0:02:55.3]} 11... Nh5 {[%clk 0:02:44.6]} 12. Bd2 {[%clk 0:02:53.3]} 12... f5
{[%clk 0:02:44.1]} 13. Re1 {[%clk 0:02:38.7]} 13... Bd6 {[%clk 0:02:42]} 14. a3
{[%clk 0:02:25.1]} 14... Nhf6 {[%clk 0:02:32.3]} 15. cxd5 {[%clk 0:02:18]} 15...
exd5 {[%clk 0:02:04.1]} 16. Qxf5 {[%clk 0:02:17.7]} 16... Ne5 {[%clk 0:02:04.1]}
17. Qc2 {[%clk 0:02:14.1]} 17... Nxf3+ {[%clk 0:01:41]} 18. exf3 {[%clk
0:02:15]} 18... Qc7 {[%clk 0:01:33.4]} 19. Rac1 {[%clk 0:02:11.5]} 19... Qf7
{[%clk 0:01:32.9]} 20. Na4 {[%clk 0:02:05.5]} 20... Rb8 {[%clk 0:01:12.2]} 21.
Bxa5 {[%clk 0:02:03.4]} 21... Nh5 {[%clk 0:01:06.9]} 22. Bb4 {[%clk 0:02:00.5]}
22... Bxb4 {[%clk 0:01:04.3]} 23. axb4 {[%clk 0:02:01.4]} 23... Bf5 {[%clk
0:01:04.9]} 24. Qd2 {[%clk 0:02:01.5]} 24... Nf6 {[%clk 0:01:03.7]} 25. Nc3
{[%clk 0:02:01.7]} 25... b5 {[%clk 0:01:02.2]} 26. Re3 {[%clk 0:01:59.4]} 26...
Rfe8 {[%clk 0:00:59.9]} 27. Rce1 {[%clk 0:01:58.6]} 27... Qf8 {[%clk 0:01:00.3]}
28. Nd1 {[%clk 0:01:53.5]} 28... Bd7 {[%clk 0:00:59.7]} 29. Re5 {[%clk
0:01:52.5]} 29... Nh7 {[%clk 0:00:54.3]} 30. f4 {[%clk 0:01:47.9]} 30... Nf6
{[%clk 0:00:53.4]} 31. Ne3 {[%clk 0:01:47.6]} 31... Ra8 {[%clk 0:00:49.2]} 32.
b3 {[%clk 0:01:08.2]} 32... Ra3 {[%clk 0:00:46.2]} 33. Qc3 {[%clk 0:01:07.9]}
33... Ra2 {[%clk 0:00:44.3]} 34. Ra1 {[%clk 0:01:07.2]} 34... Rea8 {[%clk
0:00:43.3]} 35. Rxa2 {[%clk 0:01:06.7]} 35... Rxa2 {[%clk 0:00:44.2]} 36. h3
{[%clk 0:00:57.1]} 36... Qa8 {[%clk 0:00:30.7]} 37. g4 {[%clk 0:00:55]} 37...
Ra1+ {[%clk 0:00:26.5]} 38. Kh2 {[%clk 0:00:54.4]} 38... Ra2 {[%clk 0:00:27]}
39. Kg3 {[%clk 0:00:23]} 39... Qd8 {[%clk 0:00:23.6]} 40. Bf3 {[%clk 0:00:18.2]}
40... h5 {[%clk 0:00:21.6]} 41. Qc5 {[%clk 0:00:13.9]} 41... hxg4 {[%clk
0:00:20.4]} 42. hxg4 {[%clk 0:00:14.8]} 42... Ra1 {[%clk 0:00:20.4]} 43. Qe7
{[%clk 0:00:13.4]} 43... Qxe7 {[%clk 0:00:19.8]} 44. Rxe7 {[%clk 0:00:14.2]}
44... Kf8 {[%clk 0:00:20.7]} 45. Re5 {[%clk 0:00:14.3]} 45... Rb1 {[%clk
0:00:21.3]} 46. g5 {[%clk 0:00:13.2]} 46... Ne8 {[%clk 0:00:21.8]} 47. Bd1
{[%clk 0:00:06.7]} 47... Nd6 {[%clk 0:00:20.8]} 48. Bc2 {[%clk 0:00:07.3]} 48...
Rb2 {[%clk 0:00:20.6]} 49. f5 {[%clk 0:00:06.5]} 49... Rxc2 {[%clk 0:00:14]} 50.
Nxc2 {[%clk 0:00:06.1]} 50... Nxf5+ {[%clk 0:00:14.9]} 51. Kf4 {[%clk
0:00:04.4]} 51... Nd6 {[%clk 0:00:15.2]} 52. g6 {[%clk 0:00:04]} 52... Nc8
{[%clk 0:00:13.4]} 53. Kg5 {[%clk 0:00:03.2]} 53... Nd6 {[%clk 0:00:13.1]} 54.
f3 {[%clk 0:00:03.1]} 54... Ne8 {[%clk 0:00:12.6]} 55. Ne3 {[%clk 0:00:03.4]}
55... Nc7 {[%clk 0:00:13.3]} 56. f4 {[%clk 0:00:03.1]} 56... Ne6+ {[%clk
0:00:13.5]} 57. Rxe6 {[%clk 0:00:03.6]} 57... Bxe6 {[%clk 0:00:14.4]} 58. f5
{[%clk 0:00:04.4]} 58... Bd7 {[%clk 0:00:14.6]} 59. f6 {[%clk 0:00:05]} 59...
Kg8 {[%clk 0:00:14]} 60. Nf5 {[%clk 0:00:04.3]} 60... gxf6+ {[%clk 0:00:10.1]}
61. Kxf6 {[%clk 0:00:05.2]} 61... Bxf5 {[%clk 0:00:10.6]} 62. Kxf5 {[%clk
0:00:06.1]} 62... Kg7 {[%clk 0:00:11.2]} 63. Kg5 {[%clk 0:00:06.6]} 63... Kf8
{[%clk 0:00:11.4]} 64. Kf6 {[%clk 0:00:07]} 64... Kg8 {[%clk 0:00:10.7]} 65. g7
{[%clk 0:00:05.1]} 1-0

[Event "Early-Titled-Tuesday-Blitz-October-10-2023"]
[Site "Chess.com"]
[Date "2023.10.10"]
[Round "10"]
[White "alexrustemov"]
[Black "TatjanaVasilevich"]
[Result "0-1"]
[WhiteElo "2863"]
[BlackElo "2645"]
[TimeControl "180+1"]
[EndTime "9:55:32 PDT"]
[Termination "TatjanaVasilevich won on time"]

1. d4 {[%clk 0:03:00.9]} 1... Nf6 {[%clk 0:02:57.4]} 2. c4 {[%clk 0:03:01.1]}
2... e6 {[%clk 0:02:56]} 3. Nf3 {[%clk 0:03:01.4]} 3... Bb4+ {[%clk 0:02:55.8]}
4. Bd2 {[%clk 0:03:01.5]} 4... Bxd2+ {[%clk 0:02:55.8]} 5. Qxd2 {[%clk
0:03:01.3]} 5... O-O {[%clk 0:02:56.3]} 6. Nc3 {[%clk 0:03:01.5]} 6... d6 {[%clk
0:02:56.7]} 7. g3 {[%clk 0:03:00.8]} 7... Qe7 {[%clk 0:02:56.8]} 8. Bg2 {[%clk
0:03:01.2]} 8... e5 {[%clk 0:02:56.7]} 9. O-O {[%clk 0:03:01.4]} 9... Nc6 {[%clk
0:02:56.4]} 10. dxe5 {[%clk 0:03:01]} 10... dxe5 {[%clk 0:02:56.6]} 11. Nd5
{[%clk 0:03:01.3]} 11... Nxd5 {[%clk 0:02:56.6]} 12. cxd5 {[%clk 0:03:01.4]}
12... Rd8 {[%clk 0:02:56.6]} 13. h3 {[%clk 0:02:49.2]} 13... e4 {[%clk
0:02:33.5]} 14. Ng5 {[%clk 0:02:46.6]} 14... f5 {[%clk 0:02:12.2]} 15. h4 {[%clk
0:02:37.6]} 15... Be6 {[%clk 0:01:52.3]} 16. Nxe6 {[%clk 0:02:26.7]} 16... Qxe6
{[%clk 0:01:52.5]} 17. Rfd1 {[%clk 0:02:27.3]} 17... Qe5 {[%clk 0:01:51.4]} 18.
Rac1 {[%clk 0:02:20]} 18... Ne7 {[%clk 0:01:50.7]} 19. Qb4 {[%clk 0:02:05.6]}
19... Nxd5 {[%clk 0:01:33.6]} 20. Qxb7 {[%clk 0:02:03.5]} 20... Rab8 {[%clk
0:01:34]} 21. Qxa7 {[%clk 0:02:02.6]} 21... Qxb2 {[%clk 0:01:28]} 22. e3 {[%clk
0:01:53.7]} 22... Nc3 {[%clk 0:01:22.8]} 23. Rxd8+ {[%clk 0:01:46.4]} 23... Rxd8
{[%clk 0:01:23]} 24. Rf1 {[%clk 0:01:45]} 24... Qb6 {[%clk 0:01:16.7]} 25. Qa3
{[%clk 0:01:41.3]} 25... Rd3 {[%clk 0:01:01.1]} 26. Qe7 {[%clk 0:01:36.8]} 26...
h6 {[%clk 0:00:59]} 27. Bh3 {[%clk 0:01:31.5]} 27... Rd5 {[%clk 0:00:46.8]} 28.
h5 {[%clk 0:01:26.7]} 28... Qd6 {[%clk 0:00:44]} 29. Qe8+ {[%clk 0:01:22.7]}
29... Kh7 {[%clk 0:00:44]} 30. Qc8 {[%clk 0:01:19.8]} 30... Qe5 {[%clk
0:00:42.2]} 31. a3 {[%clk 0:01:05.3]} 31... f4 {[%clk 0:00:41.3]} 32. exf4
{[%clk 0:01:00]} 32... Qxh5 {[%clk 0:00:38.3]} 33. Bg4 {[%clk 0:00:47.4]} 33...
Qf7 {[%clk 0:00:37.7]} 34. Be6 {[%clk 0:00:45.7]} 34... Rd8 {[%clk 0:00:20.3]}
35. Qxd8 {[%clk 0:00:32.1]} 35... Qxe6 {[%clk 0:00:20.4]} 36. Qd2 {[%clk
0:00:32.2]} 36... Nd5 {[%clk 0:00:20.4]} 37. Re1 {[%clk 0:00:31.2]} 37... h5
{[%clk 0:00:20.5]} 38. Qd4 {[%clk 0:00:29.5]} 38... Nf6 {[%clk 0:00:20.9]} 39.
Qe5 {[%clk 0:00:28.9]} 39... Qg4 {[%clk 0:00:21.1]} 40. Rxe4 {[%clk 0:00:20.6]}
40... h4 {[%clk 0:00:19.5]} 41. Re3 {[%clk 0:00:16.9]} 41... Qd1+ {[%clk
0:00:19.7]} 42. Re1 {[%clk 0:00:09.3]} 42... Qd3 {[%clk 0:00:19.8]} 43. Qe3
{[%clk 0:00:09]} 43... Qf5 {[%clk 0:00:20.3]} 44. Qf3 {[%clk 0:00:08.7]} 44...
h3 {[%clk 0:00:20.4]} 45. Kh1 {[%clk 0:00:06.8]} 45... Ng4 {[%clk 0:00:20.1]}
46. Rf1 {[%clk 0:00:06.3]} 46... Kh6 {[%clk 0:00:18.5]} 47. Kg1 {[%clk
0:00:06.7]} 47... Qh5 {[%clk 0:00:17.5]} 48. Re1 {[%clk 0:00:05.7]} 48... Qf5
{[%clk 0:00:17.1]} 49. Qe4 {[%clk 0:00:04.4]} 49... h2+ {[%clk 0:00:17]} 50. Kg2
{[%clk 0:00:04.6]} 50... Qxe4+ {[%clk 0:00:16.6]} 51. Rxe4 {[%clk 0:00:04.3]}
51... h1=Q+ {[%clk 0:00:16.8]} 52. Kxh1 {[%clk 0:00:03.2]} 52... Nxf2+ {[%clk
0:00:17.7]} 53. Kg2 {[%clk 0:00:03.6]} 53... Nxe4 {[%clk 0:00:18.6]} 54. a4
{[%clk 0:00:04.3]} 54... Nc5 {[%clk 0:00:18.9]} 55. a5 {[%clk 0:00:03.7]} 55...
Kg6 {[%clk 0:00:19.7]} 56. g4 {[%clk 0:00:04]} 56... Kf6 {[%clk 0:00:19.6]} 57.
Kf3 {[%clk 0:00:04.5]} 57... Ke6 {[%clk 0:00:19.7]} 58. Ke3 {[%clk 0:00:04.3]}
58... Kd5 {[%clk 0:00:20.2]} 59. f5 {[%clk 0:00:03.5]} 59... Ke5 {[%clk
0:00:20.5]} 60. Kf3 {[%clk 0:00:03.8]} 60... c6 {[%clk 0:00:19.4]} 61. Ke3
{[%clk 0:00:03.9]} 61... Na6 {[%clk 0:00:19.9]} 62. Kd3 {[%clk 0:00:04.1]} 62...
Kd5 {[%clk 0:00:19.7]} 63. g5 {[%clk 0:00:03.1]} 63... Ke5 {[%clk 0:00:20.3]}
64. f6 {[%clk 0:00:03.2]} 64... gxf6 {[%clk 0:00:20.9]} 65. g6 {[%clk
0:00:03.4]} 65... Ke6 {[%clk 0:00:21.5]} 66. Ke4 {[%clk 0:00:03.7]} 66... f5+
{[%clk 0:00:22.1]} 67. Kf4 {[%clk 0:00:03.8]} 67... Kf6 {[%clk 0:00:22.6]} 68.
g7 {[%clk 0:00:04]} 68... Kxg7 {[%clk 0:00:23.3]} 69. Ke5 {[%clk 0:00:04.1]}
69... f4 {[%clk 0:00:23]} 70. Kd6 {[%clk 0:00:03]} 70... f3 {[%clk 0:00:23.3]}
71. Kxc6 {[%clk 0:00:03.8]} 71... f2 {[%clk 0:00:24]} 72. Kb6 {[%clk 0:00:04.4]}
72... f1=Q {[%clk 0:00:24.9]} 0-1

[Event "Early-Titled-Tuesday-Blitz-October-10-2023"]
[Site "Chess.com"]
[Date "2023.10.10"]
[Round "10"]
[White "viktorskliarov"]
[Black "feuervogel1000000"]
[Result "0-1"]
[WhiteElo "2631"]
[BlackElo "2539"]
[TimeControl "180+1"]
[EndTime "9:55:33 PDT"]
[Termination "feuervogel1000000 won on time"]

1. e4 {[%clk 0:03:00.9]} 1... c5 {[%clk 0:02:59.9]} 2. Nf3 {[%clk 0:02:59.1]}
2... d6 {[%clk 0:03:00.4]} 3. d4 {[%clk 0:02:58]} 3... cxd4 {[%clk 0:03:01.3]}
4. Qxd4 {[%clk 0:02:57.1]} 4... Nf6 {[%clk 0:03:00.8]} 5. Nc3 {[%clk 0:02:56.6]}
5... Nc6 {[%clk 0:02:59.9]} 6. Bb5 {[%clk 0:02:55.8]} 6... Bd7 {[%clk
0:03:00.3]} 7. Bxc6 {[%clk 0:02:55.8]} 7... Bxc6 {[%clk 0:03:01.2]} 8. Bg5
{[%clk 0:02:56]} 8... e6 {[%clk 0:03:00.9]} 9. O-O-O {[%clk 0:02:55.8]} 9... Be7
{[%clk 0:03:00.6]} 10. Rhe1 {[%clk 0:02:56.1]} 10... Qa5 {[%clk 0:02:58.4]} 11.
Kb1 {[%clk 0:02:53.4]} 11... h6 {[%clk 0:02:54.5]} 12. Bh4 {[%clk 0:02:30.9]}
12... O-O {[%clk 0:02:37.9]} 13. Qd2 {[%clk 0:02:24.9]} 13... Qc7 {[%clk
0:02:28.6]} 14. Nd4 {[%clk 0:02:01.2]} 14... Rfd8 {[%clk 0:02:03.1]} 15. Bg3
{[%clk 0:01:31.1]} 15... a6 {[%clk 0:01:48.4]} 16. f3 {[%clk 0:01:30.1]} 16...
b5 {[%clk 0:01:45.5]} 17. Bf2 {[%clk 0:01:24.5]} 17... b4 {[%clk 0:01:43.5]} 18.
Nce2 {[%clk 0:01:24.4]} 18... d5 {[%clk 0:01:43.1]} 19. e5 {[%clk 0:01:24.2]}
19... Nd7 {[%clk 0:01:40.4]} 20. Nxc6 {[%clk 0:01:22.7]} 20... Qxc6 {[%clk
0:01:39.7]} 21. Nd4 {[%clk 0:01:22.5]} 21... Qb7 {[%clk 0:01:38.1]} 22. g4
{[%clk 0:01:08]} 22... Nc5 {[%clk 0:01:34.5]} 23. h4 {[%clk 0:00:59.3]} 23...
Kf8 {[%clk 0:00:52.4]} 24. g5 {[%clk 0:00:57]} 24... hxg5 {[%clk 0:00:51.3]} 25.
hxg5 {[%clk 0:00:57.6]} 25... g6 {[%clk 0:00:51.9]} 26. Rh1 {[%clk 0:00:52.9]}
26... Kg7 {[%clk 0:00:44.1]} 27. Rh6 {[%clk 0:00:21.1]} 27... Rh8 {[%clk
0:00:39.7]} 28. Rdh1 {[%clk 0:00:21.6]} 28... Rxh6 {[%clk 0:00:39.5]} 29. gxh6+
{[%clk 0:00:21.7]} 29... Kh7 {[%clk 0:00:39.5]} 30. Qf4 {[%clk 0:00:20.5]} 30...
Rf8 {[%clk 0:00:39.4]} 31. Bh4 {[%clk 0:00:19.3]} 31... Bxh4 {[%clk 0:00:30]}
32. Qxh4 {[%clk 0:00:18.5]} 32... Rg8 {[%clk 0:00:19.8]} 33. Qf6 {[%clk
0:00:15.2]} 33... Qd7 {[%clk 0:00:19.7]} 34. Ne2 {[%clk 0:00:06.7]} 34... Qe8
{[%clk 0:00:18.6]} 35. Nf4 {[%clk 0:00:05.7]} 35... Nd7 {[%clk 0:00:18.2]} 36.
Qg5 {[%clk 0:00:05.5]} 36... Qd8 {[%clk 0:00:18.4]} 37. Nh3 {[%clk 0:00:05.7]}
37... f6 {[%clk 0:00:08.6]} 38. exf6 {[%clk 0:00:05.6]} 38... Qxf6 {[%clk
0:00:09.5]} 39. Qxf6 {[%clk 0:00:05.1]} 39... Nxf6 {[%clk 0:00:09.4]} 40. Ng5+
{[%clk 0:00:05.7]} 40... Kh8 {[%clk 0:00:09.7]} 41. Nxe6 {[%clk 0:00:06.1]}
41... Re8 {[%clk 0:00:09.3]} 42. Nf4 {[%clk 0:00:05.6]} 42... Kh7 {[%clk
0:00:07.7]} 43. Nd3 {[%clk 0:00:05.6]} 43... a5 {[%clk 0:00:07.5]} 44. a3 {[%clk
0:00:05.6]} 44... bxa3 {[%clk 0:00:07.1]} 45. bxa3 {[%clk 0:00:06.5]} 45... Re3
{[%clk 0:00:07.6]} 46. Rh3 {[%clk 0:00:06.2]} 46... d4 {[%clk 0:00:06.1]} 47.
Kb2 {[%clk 0:00:06.5]} 47... Nd5 {[%clk 0:00:05.8]} 48. Kb3 {[%clk 0:00:07]}
48... Nf4 {[%clk 0:00:04.4]} 49. Rh4 {[%clk 0:00:04.6]} 49... Nxd3 {[%clk
0:00:04.7]} 50. cxd3 {[%clk 0:00:05]} 50... Rxd3+ {[%clk 0:00:05.6]} 51. Ka4
{[%clk 0:00:04.9]} 51... Rxf3 {[%clk 0:00:03.2]} 52. Rxd4 {[%clk 0:00:04.9]}
52... Rf5 {[%clk 0:00:03.8]} 53. Rh4 {[%clk 0:00:03.8]} 53... g5 {[%clk
0:00:04.3]} 54. Rh1 {[%clk 0:00:03.8]} 54... g4 {[%clk 0:00:04.2]} 55. Kb3
{[%clk 0:00:03.8]} 55... g3 {[%clk 0:00:04.4]} 56. Kc2 {[%clk 0:00:02.1]} 56...
g2 {[%clk 0:00:04.2]} 57. Rg1 {[%clk 0:00:02.6]} 57... Rf2+ {[%clk 0:00:04.9]}
58. Kd3 {[%clk 0:00:02.6]} 58... Kxh6 {[%clk 0:00:05.8]} 59. Ke3 {[%clk
0:00:03.1]} 59... Ra2 {[%clk 0:00:05.7]} 60. Kf3 {[%clk 0:00:03.6]} 60... Rxa3+
{[%clk 0:00:05.6]} 61. Kxg2 {[%clk 0:00:03.9]} 61... Kg5 {[%clk 0:00:06.2]} 62.
Rf1 {[%clk 0:00:04]} 62... Kg4 {[%clk 0:00:05.8]} 63. Rf2 {[%clk 0:00:03.9]}
63... Rg3+ {[%clk 0:00:06.1]} 64. Kh2 {[%clk 0:00:04.1]} 64... a4 {[%clk
0:00:05.6]} 65. Ra2 {[%clk 0:00:03.4]} 65... a3 {[%clk 0:00:06]} 66. Ra1 {[%clk
0:00:03.8]} 66... Rb3 {[%clk 0:00:06.5]} 67. Kg2 {[%clk 0:00:03]} 67... Rb2+
{[%clk 0:00:06.2]} 68. Kf1 {[%clk 0:00:03.6]} 68... a2 {[%clk 0:00:06.8]} 69.
Ke1 {[%clk 0:00:03.2]} 69... Rb1+ {[%clk 0:00:07]} 0-1

[Event "Early-Titled-Tuesday-Blitz-October-10-2023"]
[Site "Chess.com"]
[Date "2023.10.10"]
[Round "10"]
[White "Fandorine"]
[Black "Abund"]
[Result "1-0"]
[WhiteElo "2921"]
[BlackElo "2791"]
[TimeControl "180+1"]
[EndTime "9:55:38 PDT"]
[Termination "Fandorine won by checkmate"]

1. g3 {[%clk 0:03:00.9]} 1... d5 {[%clk 0:02:59.7]} 2. Nf3 {[%clk 0:02:58.3]}
2... c5 {[%clk 0:02:59.3]} 3. Bg2 {[%clk 0:02:56]} 3... Nc6 {[%clk 0:02:59.5]}
4. d4 {[%clk 0:02:56]} 4... Nf6 {[%clk 0:02:58.5]} 5. O-O {[%clk 0:02:55.4]}
5... e6 {[%clk 0:02:58.9]} 6. c4 {[%clk 0:02:55.3]} 6... dxc4 {[%clk 0:02:59.8]}
7. dxc5 {[%clk 0:02:53.7]} 7... Qxd1 {[%clk 0:03:00.7]} 8. Rxd1 {[%clk
0:02:53.6]} 8... Bxc5 {[%clk 0:03:01.4]} 9. Nbd2 {[%clk 0:02:52.5]} 9... c3
{[%clk 0:03:01.9]} 10. bxc3 {[%clk 0:02:52.4]} 10... O-O {[%clk 0:03:02.6]} 11.
Nb3 {[%clk 0:02:53]} 11... Be7 {[%clk 0:03:03.2]} 12. Nfd4 {[%clk 0:02:52.6]}
12... Nxd4 {[%clk 0:03:03.6]} 13. cxd4 {[%clk 0:02:52.9]} 13... Nd5 {[%clk
0:03:03.8]} 14. Na5 {[%clk 0:02:47.3]} 14... Bb4 {[%clk 0:03:00.9]} 15. Nc4
{[%clk 0:02:44.5]} 15... Bd7 {[%clk 0:03:01.3]} 16. Bd2 {[%clk 0:02:40.2]} 16...
Nc3 {[%clk 0:02:51.3]} 17. Bxc3 {[%clk 0:02:21.7]} 17... Bxc3 {[%clk 0:02:45.6]}
18. Rac1 {[%clk 0:02:22.4]} 18... Ba4 {[%clk 0:02:20.7]} 19. Rd3 {[%clk
0:02:19.1]} 19... Bb4 {[%clk 0:02:20.9]} 20. Nb2 {[%clk 0:02:02.6]} 20... Bd7
{[%clk 0:01:45]} 21. Rc7 {[%clk 0:01:52.2]} 21... Rfd8 {[%clk 0:01:32.9]} 22.
Rxb7 {[%clk 0:01:40.7]} 22... Rab8 {[%clk 0:01:23.4]} 23. Rxb8 {[%clk 0:01:23]}
23... Rxb8 {[%clk 0:01:23.4]} 24. Rb3 {[%clk 0:01:23.7]} 24... Bd6 {[%clk
0:01:16.3]} 25. Rxb8+ {[%clk 0:01:15.8]} 25... Bxb8 {[%clk 0:01:17.2]} 26. e3
{[%clk 0:01:13.9]} 26... Bb5 {[%clk 0:01:14.8]} 27. Bf1 {[%clk 0:01:09.9]} 27...
Bc6 {[%clk 0:01:14.5]} 28. f4 {[%clk 0:01:07.2]} 28... Kf8 {[%clk 0:01:02.2]}
29. Kf2 {[%clk 0:01:05.8]} 29... Ke7 {[%clk 0:00:53.3]} 30. Bc4 {[%clk
0:00:45.5]} 30... Be4 {[%clk 0:00:50.8]} 31. Bb3 {[%clk 0:00:39.7]} 31... h6
{[%clk 0:00:45.8]} 32. Nc4 {[%clk 0:00:37.8]} 32... Bc7 {[%clk 0:00:45.6]} 33.
Ke2 {[%clk 0:00:36]} 33... g5 {[%clk 0:00:40.9]} 34. Nd2 {[%clk 0:00:34.8]}
34... Bc6 {[%clk 0:00:40]} 35. Bc4 {[%clk 0:00:26.2]} 35... Kf6 {[%clk
0:00:32.6]} 36. Bd3 {[%clk 0:00:24.5]} 36... Bd5 {[%clk 0:00:29.7]} 37. a4
{[%clk 0:00:22.7]} 37... Ke7 {[%clk 0:00:29.6]} 38. Bb5 {[%clk 0:00:20.2]} 38...
Kf6 {[%clk 0:00:28.7]} 39. e4 {[%clk 0:00:20.4]} 39... Bb7 {[%clk 0:00:28.2]}
40. Ke3 {[%clk 0:00:19.4]} 40... gxf4+ {[%clk 0:00:22.9]} 41. gxf4 {[%clk
0:00:20.3]} 41... Kg6 {[%clk 0:00:22.9]} 42. Be8 {[%clk 0:00:19.6]} 42... Kf6
{[%clk 0:00:22.6]} 43. Nf3 {[%clk 0:00:19.1]} 43... Ke7 {[%clk 0:00:22.9]} 44.
Bb5 {[%clk 0:00:18.9]} 44... f6 {[%clk 0:00:19.9]} 45. Nh4 {[%clk 0:00:15.6]}
45... Kf7 {[%clk 0:00:19.3]} 46. Bc4 {[%clk 0:00:13.8]} 46... Ke7 {[%clk
0:00:17.9]} 47. Ng6+ {[%clk 0:00:14]} 47... Kd6 {[%clk 0:00:16.7]} 48. e5+
{[%clk 0:00:13]} 48... fxe5 {[%clk 0:00:16.8]} 49. fxe5+ {[%clk 0:00:13.6]}
49... Kd7 {[%clk 0:00:13.3]} 50. Nf8+ {[%clk 0:00:13.7]} 50... Ke7 {[%clk
0:00:14]} 51. Nxe6 {[%clk 0:00:14.2]} 51... Bb6 {[%clk 0:00:13.9]} 52. Nc5
{[%clk 0:00:13.2]} 52... Bc6 {[%clk 0:00:13.1]} 53. Bb5 {[%clk 0:00:12.5]} 53...
Bd5 {[%clk 0:00:13.3]} 54. Nd3 {[%clk 0:00:11.4]} 54... Ba5 {[%clk 0:00:10.3]}
55. Nf4 {[%clk 0:00:11.8]} 55... Bb3 {[%clk 0:00:09.8]} 56. d5 {[%clk
0:00:09.4]} 56... Bc3 {[%clk 0:00:10]} 57. d6+ {[%clk 0:00:09.8]} 57... Kf7
{[%clk 0:00:09.5]} 58. Ke4 {[%clk 0:00:09.3]} 58... Bc2+ {[%clk 0:00:06.9]} 59.
Bd3 {[%clk 0:00:10]} 59... Bxa4 {[%clk 0:00:06.7]} 60. Bc4+ {[%clk 0:00:10.6]}
60... Ke8 {[%clk 0:00:06.6]} 61. e6 {[%clk 0:00:11.3]} 61... Bb4 {[%clk
0:00:04]} 62. Kd5 {[%clk 0:00:08.7]} 62... a5 {[%clk 0:00:03.9]} 63. Bd3 {[%clk
0:00:06.5]} 63... Kd8 {[%clk 0:00:02.1]} 64. e7+ {[%clk 0:00:06.3]} 64... Kc8
{[%clk 0:00:02.4]} 65. Bf5+ {[%clk 0:00:06.4]} 65... Kb7 {[%clk 0:00:02.5]} 66.
Bg6 {[%clk 0:00:06.4]} 66... Bxd6 {[%clk 0:00:01.9]} 67. Kxd6 {[%clk 0:00:06.5]}
67... Kb6 {[%clk 0:00:02]} 68. Nd5+ {[%clk 0:00:06.3]} 68... Kb7 {[%clk
0:00:02]} 69. Nc3 {[%clk 0:00:06.6]} 69... Be8 {[%clk 0:00:01.4]} 70. Bxe8
{[%clk 0:00:06.6]} 70... Kc8 {[%clk 0:00:02]} 71. Bc6 {[%clk 0:00:06.7]} 71...
a4 {[%clk 0:00:02.9]} 72. e8=Q# {[%clk 0:00:07.4]} 1-0